[Event "44th Chess Olympiad Open 2022"]
[Site "Chennai"]
[Date "2022.08.01"]
[Round "4.30"]
[White "Cabezas Solano, David Alejandro"]
[Black "Subelj, Jan"]
[Result "0-1"]
[WhiteElo "2196"]
[BlackElo "2498"]
[Annotator "TA"]
[PlyCount "76"]
[EventDate "2022.??.??"]
[TimeControl "60"]

{[%evp 16,76,0,0,24,8,19,-2,0,-10,-11,-12,-10,-12,0,-25,-29,-30,-33,-52,-50,
-53,-43,-55,-32,-50,-53,-72,-72,-56,-66,-66,-52,-58,-62,-142,-148,-158,-145,
-134,-79,-79,-70,-98,-90,-166,-87,-482,-475,-465,-466,-800,-554,-804,-788,-959,
-866,-922,-927,-995,-1013,-1042,-1004]} 1. d4 {[%emt 0:00:09]} d5 {[%emt 0:00:
00]} 2. Nf3 {[%emt 0:00:47]} Nf6 {[%emt 0:00:57]} 3. g3 {[%emt 0:00:15]} Bf5 {
[%emt 0:00:50]} 4. Bg2 {[%emt 0:00:10]} e6 {[%emt 0:00:25]} 5. c4 {[%emt 0:00:
00]} c6 {[%emt 0:00:45]} 6. Nc3 {[%emt 0:00:40]} h6 {[%emt 0:02:18]} 7. O-O {
[%emt 0:00:19]} Be7 {[%emt 0:02:49]} 8. Qb3 {[%emt 0:00:19]} Qb6 {[%emt 0:00:
00]} 9. c5 {[%emt 0:00:15]} Qc7 {[%emt 0:03:11] D11: Slav Defence: 3 Nf3
sidelines and 3...Nf6 4 e3 Bg4.} 10. Bf4 {[%emt 0:01:07]} Qc8 {[%emt 0:00:00]}
11. Rac1 {[%emt 0:08:04]} O-O {[%emt 0:00:32] The position is equal.} 12. Ne5 {
[%emt 0:01:12]} Nbd7 {[%emt 0:01:26] [#]} 13. Nxd7 $146 {[%emt 0:13:04]} ({
Predecessor:} 13. Nd3 Re8 14. Rfe1 g5 15. Bd2 Ne4 16. Nxe4 dxe4 17. Ne5 {
½-½ (31) Medina Masdeu,R (2160)-Ibanez Tarradellas,E (2219) Barcelona 2019})
13... Qxd7 {[%emt 0:11:50]} 14. f3 {[%emt 0:12:00]} Bh7 {[%emt 0:08:54]} 15. g4
{[%emt 0:08:37]} Qc8 {[%emt 0:08:46]} 16. Bg3 {[%emt 0:10:11]} Nd7 {[%emt 0:00:
00]} 17. f4 {[%emt 0:00:00]} b6 {[%emt 0:13:12]} 18. cxb6 {[%emt 0:00:00]} Nxb6
{[%emt 0:03:05] Hoping for ...Nc4.} 19. e4 {[%emt 0:12:38][%cal Re4d5]} Qd7 {
[%emt 0:04:45]} (19... Nc4 {is interesting.} 20. exd5 Nd2 21. Qd1 Nxf1 22. Qxf1
Qb8) 20. Qd1 {[%emt 0:05:51]} Rad8 {[%emt 0:08:48]} 21. e5 {[%emt 0:04:48]} c5
{[%emt 0:03:35]} 22. Bf2 {[%emt 0:03:04]} c4 {[%emt 0:00:00]} 23. Be3 {[%emt 0:
00:00]} Bd3 {[%emt 0:00:00]} 24. Rf2 {[%emt 0:00:43]} f6 {[%emt 0:01:35]} 25.
Bf1 {[%emt 0:02:49]} (25. exf6 $15 Rxf6 26. Bf1) 25... fxe5 $17 {[%emt 0:04:42]
} 26. fxe5 {[%emt 0:02:56]} Rxf2 {[%emt 0:00:00]} 27. Bxf2 {[%emt 0:02:12]} Bh7
{[%emt 0:00:56] Black is more active.} (27... Bg5 $142 28. Ra1 Bg6) 28. Be3 {
[%emt 0:00:00]} Rf8 {[%emt 0:01:51]} 29. Bg2 {[%emt 0:01:01]} Bd3 {[%emt 0:00:
00]} 30. Ne2 {[%emt 0:02:24] [#]} (30. h3 $17 {might work better.}) 30... Qa4 {
[%emt 0:00:00]} ({Black should try} 30... Qb5 $1 $19 {[%cal Rb5b2]} 31. Qd2 Na4
) 31. Nf4 $2 {[%emt 0:01:32] Loses the game.} (31. Qxa4 $17 Nxa4 32. Nf4) 31...
Qxd1+ $19 {[%emt 0:00:00] Black is clearly winning.} 32. Rxd1 {[%emt 0:00:02]}
Bg5 {[%emt 0:06:42]} 33. Nxe6 {[%emt 0:06:16]} (33. Nxd3 $142 Bxe3+ 34. Kh1)
33... Bxe3+ {[%emt 0:00:00]} 34. Kh1 {[%emt 0:00:47]} Rf2 {[%emt 0:00:38]} 35.
Nc7 {[%emt 0:00:00]} Bxd4 {[%emt 0:00:00]} 36. e6 {[%emt 0:00:00]} Kf8 {
[%emt 0:00:00]} 37. Re1 {[%emt 0:00:11]} Ke7 {[%emt 0:00:00]} 38. a4 {[%emt 0:
00:33]} a5 {[%emt 0:00:00] Weighted Error Value: White=0.64/ Black=0.11 (very
precise)} 0-1

[Event "44th Chess Olympiad Open 2022"]
[Site "Chennai"]
[Date "2022.08.01"]
[Round "4.31"]
[White "Morovic Fernandez, Ivan"]
[Black "Boudriga, Mohamed Ali"]
[Result "1/2-1/2"]
[WhiteElo "2489"]
[BlackElo "2308"]
[Annotator "TA"]
[PlyCount "63"]
[EventDate "2022.??.??"]
[TimeControl "60"]

{[%evp 24,63,13,13,19,20,25,23,25,20,24,21,21,17,12,0,13,0,0,-77,-60,-68,-66,
-67,-77,-77,-84,-86,-101,-113,-113,-113,-113,-113,-13,-13,-13,-13,-13,-13,-13,
-13]} 1. d4 {[%emt 0:00:07]} d5 {[%emt 0:00:22]} 2. c4 {[%emt 0:00:16]} c6 {
[%emt 0:01:52]} 3. Nf3 {[%emt 0:05:18]} Nf6 {[%emt 0:00:46]} 4. e3 {[%emt 0:00:
00]} e6 {[%emt 0:03:06][%cal Ye7e6,Ye6e5,Ye5d4]} 5. Bd3 {[%emt 0:00:00]} Nbd7 {
[%emt 0:03:31]} 6. O-O {[%emt 0:01:09]} Bd6 {[%emt 0:06:28]} 7. Nbd2 {[%emt 0:
01:29]} O-O {[%emt 0:04:49]} 8. e4 {[%emt 0:02:56]} e5 {[%emt 0:06:07]} 9. cxd5
{[%emt 0:01:07]} cxd5 {[%emt 0:00:02]} 10. exd5 {[%emt 0:01:27]} exd4 {[%emt 0:
00:20]} 11. Ne4 {[%emt 0:09:02]} Nxe4 {[%emt 0:05:10]} 12. Bxe4 {[%emt 0:00:05]
} Nf6 {[%emt 0:04:30]} 13. Bg5 {[%emt 0:05:39]} h6 {[%emt 0:00:00] D30:
Queen's Gambit Declined: Systems without Nc3.} 14. Bxf6 {[%emt 0:00:00]} Qxf6 {
[%emt 0:00:03]} 15. Qxd4 {[%emt 0:00:13]} Qxd4 {[%emt 0:02:39] White has an
edge.} 16. Nxd4 {[%emt 0:00:06]} Bd7 {[%emt 0:00:25]} 17. Rad1 {[%emt 0:12:17]}
g6 {[%emt 0:04:05] [#]} 18. Bd3 $146 {[%emt 0:07:25]} ({Predecessor:} 18. g3
Rac8 19. Kg2 Rfe8 20. Bf3 Kg7 21. Rd3 Kf6 22. h3 h5 23. h4 Rc7 24. Kh2 {
0-1 (34) Volkov,S (2622)-Potkin,V (2534) Abu Dhabi 2005}) 18... a6 {[%emt 0:01:
49]} 19. Rc1 {[%emt 0:03:05]} Rfe8 {[%emt 0:08:37][%cal Yf8e8,Ye8e5,Ye5e3,
Ye3b3]} 20. Nb3 {[%emt 0:04:15]} Re5 {[%emt 0:10:28]} 21. f4 {[%emt 0:07:39] 
[#]} (21. Nc5 $11 {remains equal.} Rxd5 22. Nxd7 Rxd3 23. Rfd1 Rxd1+ 24. Rxd1)
21... Re3 $1 $17 {[%emt 0:06:34]} ({Of course not} 21... Rxd5 22. Be4 Rb5 23.
Rcd1 $11) 22. Rc3 {[%emt 0:16:51]} Rc8 {[%emt 0:07:34]} 23. Rxc8+ {[%emt 0:05:
07]} Bxc8 {[%emt 0:00:02] This bishop pair is nice.} 24. Rc1 {[%emt 0:00:44] 
[#]} Bd7 {[%emt 0:04:48]} 25. Bf1 {[%emt 0:02:07]} Bxf4 {[%emt 0:00:49][%cal
Ye3b3] Threatens to win with ...Rxb3!} 26. g3 {[%emt 0:00:00] [#]} Rxb3 $1 {
[%emt 0:08:29]} 27. gxf4 {[%emt 0:00:06]} Rxb2 {[%emt 0:00:04] KRB-KRB} 28. Rc7
{[%emt 0:00:16]} Bb5 {[%emt 0:05:15]} (28... Bf5 $17 {...Kg7 is the strong
threat.} 29. d6 Rd2 30. Rxb7 Rxd6) 29. d6 $11 {[%emt 0:03:08][%cal Yd5d6,Yd6d7]
The position is equal.} Rd2 {[%emt 0:00:00]} (29... Rxa2 $2 30. Bxb5 axb5 31.
d7 $18) 30. Bxb5 {[%emt 0:01:38]} axb5 {[%emt 0:00:01]} 31. d7 {[%emt 0:00:32]
And now Rc8+ would win.} Kg7 {[%emt 0:00:00]} 32. Rxb7 {[%emt 0:00:37]
Weighted Error Value: White=0.12 (very precise) /Black=0.13 (very precise)}
1/2-1/2

[Event "44th Chess Olympiad Open 2022"]
[Site "Chennai"]
[Date "2022.08.01"]
[Round "4.31"]
[White "Lopez Silva, Hugo"]
[Black "Bouzidi, Ahmed"]
[Result "1-0"]
[WhiteElo "2403"]
[BlackElo "2148"]
[Annotator "TA"]
[PlyCount "102"]
[EventDate "2022.??.??"]
[TimeControl "60"]

{[%evp 10,102,33,14,20,12,16,14,19,0,0,0,0,0,12,18,28,29,29,28,26,29,32,0,0,0,
0,0,27,19,33,-17,0,0,0,-14,0,-8,-7,-12,0,0,0,-14,0,0,0,0,1,0,0,0,0,0,0,-8,0,0,
0,-7,0,0,0,0,0,7,12,4,18,16,44,39,39,37,48,40,61,63,56,47,134,86,128,119,118,
118,138,124,337,333,797,798,819,744,29978]} 1. e4 {[%emt 0:00:04]} e5 {[%emt 0:
00:00]} 2. Nf3 {[%emt 0:00:32]} Nc6 {[%emt 0:00:05]} 3. Bc4 {[%emt 0:00:37]}
Bc5 {[%emt 0:00:11]} 4. c3 {[%emt 0:00:10]} Nf6 {[%emt 0:00:56]} 5. d3 {
[%emt 0:00:05]} h6 {[%emt 0:00:48]} 6. Nbd2 {[%emt 0:03:09]} d6 {[%emt 0:07:17]
The main line 6...d6 scores better than 6...0-0. C54: Giuoco Piano: 4 c3 Nf6,
main lines with 5 d4 and 5 d3.} ({Don't play} 6... d5 7. exd5 Ne7 8. Ne4 (8.
Nxe5 Bd6 $16) 8... Nxe4 9. dxe4 $16) 7. Nf1 {[%emt 0:02:36]} O-O {[%emt 0:00:
00]} 8. Ng3 {[%emt 0:00:59]} Be6 {[%emt 0:03:29] The position is equal.} 9. Bb3
{[%emt 0:00:07]} Bb6 {[%emt 0:02:07]} 10. O-O {[%emt 0:04:19]} d5 {[%emt 0:00:
00]} 11. Qe2 {[%emt 0:29:16] [#]} dxe4 $146 {[%emt 0:02:19]} ({Predecessor:} 
11... Re8 12. h3 dxe4 13. dxe4 Bxb3 14. axb3 Qd7 15. b4 a6 16. Nh4 Rad8 17. Qf3
Qd3 {½-½ (86) Tissir,M (2379)-Acor,C (2223) Chess.com INT 2020}) 12. dxe4 {
[%emt 0:00:03]} Bxb3 {[%emt 0:10:16]} 13. axb3 {[%emt 0:00:10]} Qd7 {[%emt 0:
00:00]} 14. b4 {[%emt 0:06:44]} a6 {[%emt 0:00:28]} 15. Rd1 {[%emt 0:22:18]}
Qg4 {[%emt 0:06:45]} 16. Kf1 {[%emt 0:01:08]} Rad8 {[%emt 0:01:02]} 17. Bd2 {
[%emt 0:02:40]} Rd7 {[%emt 0:07:15]} 18. Qc4 {[%emt 0:06:34]} Re8 {[%emt 0:00:
00]} 19. h3 {[%emt 0:00:29]} Qe6 {[%emt 0:00:10]} 20. b3 {[%emt 0:00:10]} (20.
Qxe6 $14 Rxe6 21. c4) 20... Qe7 {[%emt 0:04:52]} 21. Nf5 {[%emt 0:04:29]} Qe6 {
[%emt 0:00:37]} 22. Ng3 {[%emt 0:00:14]} Qe7 {[%emt 0:04:22]} 23. Be1 {[%emt 0:
00:00]} Red8 {[%emt 0:03:27]} 24. Nf5 {[%emt 0:03:55]} Qe8 {[%emt 0:02:01]} 25.
Rd2 {[%emt 0:07:20]} Rxd2 {[%emt 0:01:37]} 26. Nxd2 {[%emt 0:00:59]} Ne7 {
[%emt 0:01:43]} 27. Nxe7+ {[%emt 0:03:08]} Qxe7 {[%emt 0:00:05]} 28. Qe2 {
[%emt 0:00:45] Prevents Nh5.} Qe6 {[%emt 0:07:44]} 29. Qc4 {[%emt 0:00:32]} Qd7
{[%emt 0:00:10]} 30. Nf3 {[%emt 0:00:23]} Qe8 {[%emt 0:04:05]} 31. Ra2 {
[%emt 0:00:46]} Rd6 {[%emt 0:02:42]} 32. Rd2 {[%emt 0:00:55]} Rc6 {[%emt 0:00:
00]} 33. Qd3 {[%emt 0:00:08]} Rd6 {[%emt 0:00:06]} 34. Qc4 {[%emt 0:00:19]} Rc6
{[%emt 0:00:11]} 35. Qd3 {[%emt 0:00:08]} Rd6 {[%emt 0:00:06]} 36. Qe2 {
[%emt 0:00:56]} Rxd2 {[%emt 0:01:20]} 37. Nxd2 {[%emt 0:00:30][%cal Yf3d2,
Yd2c4,Yc4a5]} Qc6 {[%emt 0:00:36]} 38. Qd3 {[%emt 0:00:32]} Qb5 {[%emt 0:02:08]
} 39. Nc4 {[%emt 0:00:30]} a5 {[%emt 0:02:10]} 40. bxa5 {[%emt 0:00:00]} Bxa5 {
[%emt 0:00:06]} 41. b4 {[%emt 0:30:50]} Bb6 {[%emt 0:30:25]} 42. Ke2 {[%emt 0:
00:00]} Ba7 {[%emt 0:00:00]} 43. Na5 {[%emt 0:00:00]} Qb6 {[%emt 0:00:00]} 44.
c4 {[%emt 0:00:00] [#] Strongly threatening c5.} Nh5 {[%emt 0:00:00]} ({
Better is} 44... c5 $1 $14) 45. g3 {[%emt 0:00:00]} (45. Qd8+ $142 Kh7 46. Qd7)
45... Qe6 {[%emt 0:00:00]} 46. Qd8+ {[%emt 0:00:00]} Kh7 {[%emt 0:00:00]} 47.
Qd5 {[%emt 0:00:00] Black must now prevent Qxe6.} Qxh3 {[%emt 0:00:00]} 48.
Qxe5 {[%emt 0:00:00] Hoping for c5.} Bb6 {[%emt 0:09:26] [#] A mistake that
costs the game.} (48... Qg2 $16 {was called for.}) 49. Nxb7 $18 {[%emt 0:00:00]
} g6 $2 {[%emt 0:00:00]} (49... Qg2 50. c5 (50. Qxh5 Qxe4+ 51. Kf1 Qxb7 $16)
50... Nxg3+ 51. Qxg3 Qxe4+ 52. Qe3 Qxb7 53. cxb6 cxb6) 50. c5 {[%emt 0:00:00]
[%cal Yc4c5,Yc5b6] Active counter play!} Qc8 {[%emt 0:00:00]} 51. cxb6 {
[%emt 0:00:00]} Qxb7 {[%emt 0:00:00] Weighted Error Value: White=0.05 
(flawless) /Black=0.17 (very precise)} 1-0

[Event "44th Chess Olympiad Open 2022"]
[Site "Chennai"]
[Date "2022.08.01"]
[Round "4.31"]
[White "Zaibi, Amir"]
[Black "Henriquez Villagra, Cristobal"]
[Result "0-1"]
[WhiteElo "2398"]
[BlackElo "2620"]
[Annotator "TA"]
[PlyCount "64"]
[EventDate "2022.??.??"]
[TimeControl "60"]

{[%evp 15,64,9,20,0,0,0,13,0,-13,-29,-24,-76,-15,-29,-28,-25,-22,-33,-33,-39,
-39,-33,-27,-18,-39,-108,-104,-110,-89,-102,-97,-243,-237,-237,-238,-224,-186,
-439,-435,-416,-411,-590,-605,-1366,-837,-813,-821,-1267,-1253,-1175,-974]} 1.
c4 {[%emt 0:00:03]} e6 {[%emt 0:00:15]} 2. Nf3 {[%emt 0:00:26]} d5 {[%emt 0:00:
00]} 3. d4 {[%emt 0:00:13]} Nf6 {[%emt 0:00:35]} 4. g3 {[%emt 0:00:56]} Bb4+ {
[%emt 0:00:27]} 5. Bd2 {[%emt 0:00:13]} Be7 {[%emt 0:00:22]} 6. Bg2 {[%emt 0:
00:00]} O-O {[%emt 0:00:23]} 7. O-O {[%emt 0:00:45]} Nbd7 {[%emt 0:00:38]} 8.
Qc2 {[%emt 0:04:37]} c6 {[%emt 0:00:44]} 9. Rc1 {[%emt 0:06:13] E11:
Bogo-Indian.} a5 {[%emt 0:01:59]} 10. Bf4 {[%emt 0:01:54]} h6 {[%emt 0:09:25] 
[#]} 11. Nc3 $146 {[%emt 0:11:44] The position is equal.} ({Predecessor:} 11.
a4 Nh5 12. Bd2 Nhf6 13. Bf4 Nh5 14. Bd2 Nhf6 15. b3 b6 16. cxd5 cxd5 17. Bf4
Ba6 {1-0 (42) Baryshpolets,A (2569)-Predojevic,B (2604) Chess.com INT 2020})
11... dxc4 {[%emt 0:10:24]} 12. Nd2 {[%emt 0:02:57]} Nb6 {[%emt 0:13:05]} 13.
e4 {[%emt 0:15:08]} (13. Rd1 $11) 13... g5 {[%emt 0:10:48]} (13... Qxd4 $17 14.
Rd1 Nfd7) 14. Be3 $1 $11 {[%emt 0:01:56]} Ng4 {[%emt 0:04:32]} 15. e5 {[%emt 0:
00:00]} c5 {[%emt 0:04:37]} 16. Qe4 {[%emt 0:03:11]} Nxe3 {[%emt 0:01:12]} 17.
fxe3 {[%emt 0:00:10]} cxd4 {[%emt 0:01:49]} 18. exd4 {[%emt 0:00:48]} Bd7 {
[%emt 0:00:10]} 19. Qxb7 {[%emt 0:09:02]} Rb8 $36 {[%emt 0:03:13] Black fights
for an advantage.} 20. Qe4 {[%emt 0:01:14] [#]} ({White should play} 20. Qf3
$15) 20... Bc6 $1 $17 {[%emt 0:02:02]} 21. Qxc6 {[%emt 0:08:09]} Qxd4+ {
[%emt 0:00:05]} 22. Kh1 {[%emt 0:00:06][%cal Yc6c7] Strongly threatening Qc7!}
Qxd2 {[%emt 0:00:05]} 23. Rf1 {[%emt 0:06:53] This costs White the game.} (23.
Rab1 $17) 23... Qxb2 $19 {[%emt 0:05:51]} 24. Qf3 {[%emt 0:05:18]} Nd7 {
[%emt 0:11:37][%cal Yb6d7,Yd7e5,Ye5d3]} 25. Rae1 {[%emt 0:09:38]} Bb4 {[%emt 0:
00:00]} 26. Qh5 $2 {[%emt 0:00:53] [#]} (26. Nd1 Qxa2 27. Re2) 26... Qxc3 {
[%emt 0:00:00]} ({Not} 26... Bxc3 $2 27. Qxh6 Nxe5 28. Be4 $19) 27. Qxh6 {
[%emt 0:00:23]} Nxe5 {[%emt 0:00:00]} 28. a3 {[%emt 0:00:00]} (28. Qxg5+ {
was necessary.} Ng6 29. Rxe6 fxe6 30. Qxg6+ Qg7 31. Qxe6+ Kh8 32. Qh3+ Qh7 33.
Qe6) 28... Nd3 {[%emt 0:05:09] Black is clearly winning.} ({And not} 28... Qxe1
29. Rxe1 Bxe1 30. Be4 $11) 29. axb4 {[%emt 0:00:43]} Qg7 {[%emt 0:01:27]} 30.
Qxg7+ {[%emt 0:00:27]} Kxg7 {[%emt 0:00:04]} 31. bxa5 {[%emt 0:00:06]} Nxe1 {
[%emt 0:00:06]} 32. Rxe1 {[%emt 0:00:00]} c3 {[%emt 0:00:00] Weighted Error
Value: White=0.73/Black=0.21 (precise)} 0-1

[Event "44th Chess Olympiad Open 2022"]
[Site "Chennai"]
[Date "2022.08.01"]
[Round "4.31"]
[White "Amdouni, Zoubaier"]
[Black "Salinas Herrera, Pablo"]
[Result "0-1"]
[WhiteElo "2224"]
[BlackElo "2526"]
[Annotator "TA"]
[PlyCount "140"]
[EventDate "2022.??.??"]
[TimeControl "60"]

{[%evp 14,140,33,35,41,46,39,33,33,40,50,39,18,0,60,86,83,41,45,-39,-39,-53,
-41,-45,-46,-45,-33,-29,16,0,2,-60,-49,-80,-68,-232,-209,-181,-169,-191,-139,
-133,-143,-129,-128,-133,-123,-162,-173,-200,-155,-189,-185,-173,-181,-186,
-150,-147,-154,-184,-191,-196,-185,-210,-181,-260,-254,-267,-254,-364,-346,
-567,-558,-545,-545,-670,-673,-631,-612,-595,-487,-533,-321,-287,-277,-281,
-266,-306,-270,-247,-246,-272,-191,-442,-244,-631,-431,-842,-685,-774,-775,
-950,-927,-860,-872,-1557,-1387,-1273,-1178,-2303,-2409,-2330,-2229,-29973,
-29961,-29976,-29977,-6713,-3362,-29981,-29982,-29982,-29983,-29984,-29985,
-29985,-29986,-29995,-29993]} 1. e4 {[%emt 0:00:04]} c5 {[%emt 0:00:18]} 2. Nf3
{[%emt 0:00:07]} e6 {[%emt 0:00:23]} 3. d4 {[%emt 0:00:06]} cxd4 {[%emt 0:00:
00]} 4. Nxd4 {[%emt 0:00:02]} a6 {[%emt 0:02:16]} 5. Bd3 {[%emt 0:00:31]} Bc5 {
[%emt 0:00:43]} 6. Nb3 {[%emt 0:00:06]} Ba7 {[%emt 0:00:03]} 7. O-O {[%emt 0:
00:00]} Nc6 {[%emt 0:00:25]} 8. Qg4 {[%emt 0:01:15]} Qf6 {[%emt 0:04:38] B42:
Sicilian: Kan Variation: 5 Bd3.} 9. Bg5 {[%emt 0:12:06]} Qg6 {[%emt 0:00:37] 
[#] And now ...h6 would win.} 10. Qh4 {[%emt 0:00:14][%cal Ye4e5]} f6 {[%emt 0:
00:00] [#] White is slightly better.} 11. Bf4 $146 {[%emt 0:02:32]} ({
Predecessor:} 11. Bd2 h5 12. h3 Ne5 13. Be2 Qh7 14. Nc3 g5 15. Qg3 h4 16. Qh2
Bb8 17. f4 {0-1 (47) Niemi,K (2295)-Sipila,V (2410) Helsinki 2022}) 11... h5 {
[%emt 0:09:35]} 12. Be2 {[%emt 0:27:58]} Qh7 {[%emt 0:17:59] White must now
prevent ...g5.} 13. Bd6 {[%emt 0:00:00]} Ne5 {[%emt 0:09:30]} (13... g5 $11 14.
Qg3 (14. Qh3 g4 $11) 14... Qxe4) 14. N1d2 $14 {[%emt 0:00:00]} Nf7 {[%emt 0:00:
00]} 15. Ba3 {[%emt 0:20:33][%cal Ye4e5] Hoping for e5!} Ne7 {[%emt 0:10:47]}
16. e5 {[%emt 0:05:49]} (16. Rfe1 $14) 16... Nxe5 $15 {[%emt 0:08:34]} 17. Ne4
{[%emt 0:02:26]} Nf5 {[%emt 0:00:20]} 18. Nd6+ {[%emt 0:05:15]} Nxd6 {[%emt 0:
00:00]} 19. Bxd6 {[%emt 0:00:01]} g5 {[%emt 0:11:37]} 20. Qb4 {[%emt 0:05:17]}
Nc6 {[%emt 0:02:23]} 21. Qd2 {[%emt 0:02:24] White has compensation.} Bb8 {
[%emt 0:00:58]} 22. Ba3 {[%emt 0:04:26]} (22. Bxb8 $11 Rxb8 23. f4) 22... Qf5 {
[%emt 0:01:47]} 23. Qd1 {[%emt 0:03:18]} g4 {[%emt 0:00:16]} 24. Nc5 $2 {
[%emt 0:01:07]} (24. Bd6 $15) 24... b6 $19 {[%emt 0:02:20]} 25. Nb3 {[%emt 0:
05:36]} Bb7 {[%emt 0:01:27]} 26. Bd6 {[%emt 0:00:08] Inhibits Qe5.} Bxd6 {
[%emt 0:01:06]} (26... Ne5 $19 27. Bxb8 Rxb8) 27. Qxd6 $17 {[%emt 0:00:00]} Qe5
{[%emt 0:00:08]} (27... Qxc2 $2 28. Bd3 Qxb2 29. Bg6+ (29. Qc7 Nd8 $15) 29...
Kd8 30. Rfd1 $18) 28. Rad1 {[%emt 0:01:50]} O-O-O {[%emt 0:02:39]} 29. Qd2 {
[%emt 0:00:00]} Qc7 {[%emt 0:00:56] Black is more active.} 30. Qe3 {[%emt 0:00:
00]} Ne5 {[%emt 0:00:13]} 31. Nd4 {[%emt 0:00:40]} h4 {[%emt 0:00:00]} 32. f4 {
[%emt 0:00:56]} gxf3 $1 {[%emt 0:00:05]} 33. Bxf3 {[%emt 0:00:31]} Nxf3+ {
[%emt 0:00:59]} 34. Nxf3 {[%emt 0:00:01]} Qc5 {[%emt 0:00:30]} 35. Qxc5+ {
[%emt 0:00:52]} bxc5 {[%emt 0:00:05]} 36. Rd6 {[%emt 0:00:37]} Kc7 {[%emt 0:00:
00]} 37. Rd2 {[%emt 0:00:31]} Rdg8 {[%emt 0:00:27]} 38. Ne1 {[%emt 0:00:15]}
Rh6 {[%emt 0:01:05]} 39. Kf2 {[%emt 0:00:40]} (39. Rf4 $142) 39... Be4 {
[%emt 0:01:00]} 40. Ke3 {[%emt 0:00:26]} d5 {[%emt 0:10:08][%cal Yd7d5,Yd5d4]}
41. Rf4 {[%emt 0:09:46]} (41. c4 {was worth a try.}) 41... f5 {[%emt 0:00:00]}
42. Nf3 $2 {[%emt 0:01:07]} (42. Rf1 {keeps fighting.}) 42... d4+ $19 {[%emt 0:
00:00]} 43. Kf2 {[%emt 0:00:37]} e5 {[%emt 0:04:39]} 44. Nxe5 {[%emt 0:05:19]}
Rxg2+ {[%emt 0:00:00]} 45. Ke1 {[%emt 0:00:04]} h3 {[%emt 0:00:00] [#] ...Re6
is the strong threat.} 46. Nd3 {[%emt 0:04:19]} Kd6 {[%emt 0:00:00]} (46...
Bxd3 47. cxd3 Rg1+ 48. Kf2 $19) 47. Rff2 {[%emt 0:01:27]} Re6 {[%emt 0:07:01]}
48. Kf1 {[%emt 0:00:55] Against Rg1+} Rg4 {[%emt 0:07:15] Strongly threatening
...Bg2+.} 49. Nf4 {[%emt 0:02:54] Inhibits Bg2+.} Rh6 {[%emt 0:00:06]} 50. b4 {
[%emt 0:02:29]} cxb4 {[%emt 0:02:20] aiming for ...Rh8.} 51. Rxd4+ {[%emt 0:01:
56]} Ke5 {[%emt 0:00:05]} 52. Rd8 {[%emt 0:00:04]} Rc6 {[%emt 0:01:55]} 53.
Nd3+ $2 {[%emt 0:02:45]} (53. Nxh3 {was called for.} Bxc2 54. Re2+ Be4 55. Nf2
Rc1+ 56. Rd1 Rxd1+ 57. Nxd1) 53... Kf6 {[%emt 0:00:13]} (53... Bxd3+ $142 54.
Rxd3 Rg2) 54. Ke1 $2 {[%emt 0:01:54]} (54. Re2) 54... a5 {[%emt 0:00:39]} 55.
Rd4 {[%emt 0:01:41]} (55. Rh8 $142 Rg1+ 56. Kd2) 55... Rc3 {[%emt 0:00:57]} 56.
Kd2 {[%emt 0:00:37]} Ra3 {[%emt 0:01:28]} 57. Nc5 {[%emt 0:00:46]} Ke5 {
[%emt 0:00:38]} 58. Rd8 {[%emt 0:00:28]} Rg2 {[%emt 0:00:00]} 59. Re8+ {
[%emt 0:00:29]} Kd5 {[%emt 0:00:19]} 60. Nxe4 {[%emt 0:00:10]} fxe4 {[%emt 0:
00:04] Endgame KRR-KRR} 61. Rd8+ {[%emt 0:00:39]} Kc5 {[%emt 0:00:10]} 62. Rc8+
{[%emt 0:00:09]} Kb5 {[%emt 0:00:06]} 63. Rb8+ {[%emt 0:01:04]} Ka4 {[%emt 0:
00:04]} 64. Rxg2 {[%emt 0:00:04]} hxg2 {[%emt 0:00:00] KR-KR} 65. Rg8 {[%emt 0:
00:24]} Rxa2 {[%emt 0:01:01] ( -> ...b3)} 66. Rxg2 {[%emt 0:00:17]} b3 {
[%emt 0:01:43] Black mates.} 67. Kc1 {[%emt 0:00:51]} Ka3 {[%emt 0:00:05]} 68.
Kb1 {[%emt 0:00:01]} e3 {[%emt 0:00:52]} 69. Re2 {[%emt 0:00:15]} Rb2+ {
[%emt 0:00:05]} 70. Ka1 {[%emt 0:01:36]} Rxc2 {[%emt 0:00:00] Weighted Error
Value: White=0.61/Black=0.26 (precise)} 0-1

[Event "44th Chess Olympiad Open 2022"]
[Site "Chennai"]
[Date "2022.08.01"]
[Round "4.32"]
[White "Stefansson, Hannes"]
[Black "Okeke Issac"]
[Result "1-0"]
[WhiteElo "2541"]
[BlackElo "2204"]
[Annotator "TA"]
[PlyCount "31"]
[EventDate "2022.??.??"]
[TimeControl "60"]

{[%evp 12,31,15,13,49,43,68,66,74,64,80,69,78,45,43,47,28,33,28,30,352,339]} 1.
d4 {[%emt 0:00:13]} Nf6 {[%emt 0:00:16]} 2. c4 {[%emt 0:00:17]} e6 {[%emt 0:00:
00]} 3. Nf3 {[%emt 0:00:16]} b6 {[%emt 0:01:01]} 4. g3 {[%emt 0:00:24]} Ba6 {
[%emt 0:00:48]} 5. b3 {[%emt 0:00:19]} Bb4+ {[%emt 0:00:20]} 6. Bd2 {[%emt 0:
00:00]} Be7 {[%emt 0:00:26]} 7. Nc3 {[%emt 0:00:53]} c5 {[%emt 0:01:54] 7...d5
is a critical line. E15: Queen's Indian: 4 g3 sidelines, 4 g3 Ba6 and 4 g3 Bb7
early deviations.} 8. Bg2 {[%emt 0:11:26]} Bb7 {[%emt 0:10:02]} 9. d5 {[%emt 0:
00:00]} exd5 {[%emt 0:01:19] [#] White is slightly better.} 10. Nh4 $1 {
[%emt 0:01:46]} O-O {[%emt 0:10:36]} 11. Nf5 {[%emt 0:02:55]} d6 {[%emt 0:00:
00] [#]} 12. Bf4 $146 {[%emt 0:01:20] 0x0.00249769fb0adp-1022s more active
pieces.} ({Reject} 12. Nxd5 Nxd5 13. Bxd5 Bxd5 14. cxd5 h5 $11) ({Predecessor:
} 12. O-O Ne4 13. Nxe4 dxe4 14. Bf4 Bf6 15. Rc1 Be5 16. Bxe5 dxe5 17. Qc2 Qf6
18. Bxe4 {½-½ (80) Kovanova,B (2324)-Shafigullina,Z (2296) Sochi 2020}) 12...
Qd7 {[%emt 0:07:14]} 13. Nxe7+ {[%emt 0:01:04]} Qxe7 {[%emt 0:03:33]} 14. Nxd5
{[%emt 0:01:33]} Nxd5 {[%emt 0:01:27]} 15. Bxd5 {[%emt 0:00:10][%cal Yf4d6]
Strongly threatening Bxd6! A strong pair of Bishops.} Rd8 {[%emt 0:05:51] [#]}
(15... Nc6 $11) 16. Bg5 $1 {[%emt 0:01:33] Weighted Error Value: White=0.03 
(flawless) /Black=0.84} 1-0